Cogmind - Beta 15 @@@ ROGUE MODE // 2025.10.01 @ 21:43:32 Player: PANDORA Result: Destroyed by DR-7QA(R) with Subdweller Beam Cannon Performance ------------- Evolutions (0) 0 Regions Visited (3) 600 Robots Destroyed (13) 65 Value Destroyed (331) 331 Prototype IDs (0) 0 Alien Tech Used (0) 0 Bonus (0) 0 TOTAL SCORE: 996 Bonus ------- None Cogmind --------- Core Integrity 0/250 Matter 278/300 Energy 151/250 System Corruption 1% Temperature Cool (9) Movement Core (150) Ox2 Location -10/Subcaves Parts ------- > --- POWER (1) -------- Ion Engine > --- PROPULSION (2) --- (None) > --- UTILITY (2) ------ (None) > --- WEAPON (2) ------- Assault Rifle > --- INVENTORY (5) ---- Aluminum Leg Large Storage Unit Datajack Peak State ------------ > --- POWER ------------ Light Nuclear Core > --- PROPULSION ------- Light Treads Light Treads > --- UTILITY ---------- Hacking Suite > --- WEAPON ----------- Assault Rifle Light Assault Rifle > --- INVENTORY -------- Ion Engine Ion Engine Large Storage Unit Assault Rifle Datajack [Rating: 10] Favorites ----------- Power Ion Engine Engine Ion Engine Power Core Light Nuclear Core Propulsion Light Treads Treads Light Treads Utility Hacking Suite Hackware Hacking Suite Weapon Assault Rifle Energy Gun EM Pulse Gun Ballistic Gun Assault Rifle Build | -11 -10 -10 -10 ------- Run | Yrd Mat Min Sub Slots Evolved . | . . . . Power . | . . . . Propulsion . | . . . . Utility . | . . . . Weapon . | . . . . Parts Attached 10 | 5 4 . 1 Power 3 | 1 1 . 1 Engine 2 | 1 . . 1 Core 1 | . 1 . . Reactor . | . . . . Propulsion 2 | 2 . . . Treads 2 | 2 . . . Leg . | . . . . Wheel . | . . . . Hover . | . . . . Flight . | . . . . Utility 1 | . 1 . . Device . | . . . . Storage . | . . . . Processor . | . . . . Hackware 1 | . 1 . . Protection . | . . . . Artifact . | . . . . Weapon 4 | 2 2 . . Energy Gun 1 | 1 . . . Energy Cannon . | . . . . Ballistic Gun 3 | 1 2 . . Ballistic Cannon . | . . . . Launcher . | . . . . Special Weapon . | . . . . Impact Weapon . | . . . . Slashing Weapon . | . . . . Piercing Weapon . | . . . . Special Melee Weapon . | . . . . Unidentified Prototypes . | . . . . Parts Lost 7 | . 1 . 6 Power 1 | . . . 1 Propulsion 2 | . . . 2 Utility 1 | . . . 1 Weapon 3 | . 1 . 2 Highest Loss Streak 6 | . 1 . 6 To Critical Strikes . | . . . . Average Backups 4 | 3 3 5 4 Power 1 | . 1 1 1 Propulsion . | . . 1 1 Utility . | . . 1 1 Weapon 1 | 1 1 1 . Tool/Special . | . . . . Unused Backups 5 | . 2 . 3 Power . | . . . . Propulsion 1 | . . . 1 Utility 2 | . 1 . 1 Weapon 1 | . 1 . . Tool/Special 1 | . . . 1 Average Slot Usage (%) 79 | . 78 85 68 Engine 9 | . 12 . 2 Core 4 | . 1 14 9 Treads 27 | . 28 28 21 Hackware 8 | . 7 14 11 Energy Gun 9 | . 11 . . Ballistic Gun 18 | . 16 28 23 Peak Build Rating 10 | 5 10 10 10 Average Rating 7 | 2 6 10 8 On Entrance 6 | . 5 10 10 Naked Turns . | . . . . Heaviest Build 9 | 9 9 8 8 Greatest Support 40 | 40 40 40 40 Greatest Overweight (x) . | . . . . Average Overweight (x) . | . . . . Largest Inventory Capacity 5 | 5 5 5 5 Average Capacity 5 | 5 5 5 5 Most Carried 5 | 5 5 5 5 Average Carried 4 | 3 3 5 4 Final Capacity 5 | 5 5 5 5 Final Carried 5 | 2 5 5 3 Class Distribution -------------------- 100% | Mutant Dominant Class ---------------- Mutant | -10/Materials Mutant | -10/Mines Mutant | -10/Subcaves Resources | -11 -10 -10 -10 ----------- Run | Yrd Mat Min Sub Matter Collected 394 | 233 115 46 . Remotely . | . . . . Salvage Created 448 | . 368 80 . Parts 23 | . 19 4 . Haulers Intercepted . | . . . . Recyclers Shooed 1 | . 1 . . Parts Field Recycled . | . . . . Retrieved Matter . | . . . . Parts Self-Destructed . | . . . . Prevented . | . . . . Kills | -11 -10 -10 -10 ------- Run | Yrd Mat Min Sub Combat Hostiles Destroyed 10 | . 8 2 . Guns 10 | . 8 2 . Classes Destroyed 5 | . 5 . . Builder 1 | . 1 . . Recycler 1 | . 1 . . Operator 1 | . 1 . . Swarmer 3 | . 3 . . Grunt 7 | . 5 2 . Best Kill Streak 4 | . 4 1 . Combat Bots Only 3 | . 3 1 . Max Kills in Single Turn 1 | . 1 1 . Gunslinging . | . . . . Exploded . | . . . . Melee . | . . . . Uniques/NPCs Destroyed . | . . . . Combat | -11 -10 -10 -10 -------- Run | Yrd Mat Min Sub Hostile Shots Fired 83 | . 50 10 23 Missed 18 | . 11 2 5 Hits 65 | . 39 8 18 Projectile 65 | . 39 8 18 Critical Strikes 3 | . 1 . 2 Damage Taken 959 | . 430 102 427 Core 260 | . 87 22 151 Absorbed by Shields . | . . . . Core Remaining (%) 100 | 100 . . . Volleys Fired 43 | . 27 8 8 Largest 2 | . 2 2 2 Hottest 60 | . 60 40 40 Shots Fired 81 | . 54 16 11 Gun 81 | . 54 16 11 Cannon . | . . . . Launcher . | . . . . Special . | . . . . Kinetic 64 | . 37 16 11 Thermal . | . . . . Explosive . | . . . . Electromagnetic 17 | . 17 . . Robot Hit Streak 12 | . 8 4 12 Robot Miss Streak 5 | . 5 4 1 Penetration Max . | . . . . Secondary Targets 2 | . 2 . . Max Gunslinging Chain 1 | . 1 . . Shots Hit Robots 49 | . 31 8 10 Core Hits 26 | . 19 5 2 Critical Kills . | . . . . Critical Parts Destroyed . | . . . . Critical Strikes . | . . . . Melee Attacks . | . . . . Impact . | . . . . Slashing . | . . . . Piercing . | . . . . Sneak Attacks . | . . . . Combat Hostiles . | . . . . Follow-up Attacks . | . . . . Damage Inflicted 620 | . 430 80 110 Guns 614 | . 424 80 110 Cannons . | . . . . Explosions . | . . . . Melee . | . . . . Ramming 6 | . 6 . . Kinetic 461 | . 271 80 110 Thermal . | . . . . Explosive . | . . . . Electromagnetic 153 | . 153 . . Impact . | . . . . Slashing . | . . . . Piercing . | . . . . Highest Corruption 1 | . 1 1 1 Average Corruption 1 | . 1 1 1 Corruption Purged . | . . . . Corruption Blocked . | . . . . Effects 8 | . 7 1 . Message Errors 5 | . 4 1 . Heat Flow Errors 2 | . 2 . . Energy Discharges 1 | . 1 . . Overload Shots . | . . . . Overflow Damage . | . . . . Projectiles . | . . . . Explosions . | . . . . Melee . | . . . . Knockbacks . | . . . . Impact . | . . . . Kinetic . | . . . . Secondary . | . . . . Self-Inflicted Damage . | . . . . Shots . | . . . . Rammed 3 | . 3 . . Targets Rammed 4 | . 4 . . Kicked . | . . . . Crushed 1 | . 1 . . Highest Temperature 266 | . 266 13 . Average Temperature 44 | . 51 6 . Received Heat Transfer 351 | . 159 57 135 Siege Activations . | . . . . Martial Activations . | . . . . Shielding Activations . | . . . . Robots Disrupted . | . . . . Combat Hostiles . | . . . . Robots Corrupted . | . . . . Combat Hostiles . | . . . . Parts Fried . | . . . . Impact Corruptions . | . . . . Robots Melted . | . . . . Combat Hostiles . | . . . . Parts Melted . | . . . . Heat Transferred . | . . . . Parts Sabotaged . | . . . . Parts Stolen . | . . . . Parts Stripped . | . . . . Power Chain Reactions . | . . . . Alert | -11 -10 -10 -10 ------- Run | Yrd Mat Min Sub Maximum Alert Level . | . . . . Low Security (%) 100 | 100 100 100 . Level 1 . | . . . . Level 2 . | . . . . Level 3 . | . . . . Level 4 . | . . . . Level 5 . | . . . . High Security . | . . . . Max Security . | . . . . Peak Influence 90 | . 90 55 . Initial 30 | . . 30 . Average 15 | . 14 23 . Influence Increases 286 | . 221 65 . Destroy 0b10 Robot/C 200 | . 160 40 . Destroy 0b10 Robot/NC 15 | . 15 . . Destroy Leader 50 | . 40 10 . Successful Hack 6 | . 6 . . Disable Machine 15 | . . 15 . Influence Decreases 286 | . 143 143 . Entered New Map 48 | . . 48 . Time Decay 238 | . 143 95 . Squads Dispatched 2 | . 2 . . Investigation 1 | . 1 . . Extermination . | . . . . Reinforcement 1 | . 1 . . Assault . | . . . . Garrison . | . . . . Intercept . | . . . . Searches Triggered . | . . . . Construction Impeded . | . . . . Haulers Reinforced . | . . . . Active Scanning Responses . | . . . . Cargo Convoy Interrupts . | . . . . Stealth | -11 -10 -10 -10 --------- Run | Yrd Mat Min Sub Distress Signals . | . . . . Communications Jammed . | . . . . Distress Signals . | . . . . Times Spotted 16 | . 12 2 2 Peak Tracking Total 4 | . 4 2 2 Tactical Retreats . | . . . . Traps | -11 -10 -10 -10 ------- Run | Yrd Mat Min Sub Traps Triggered 1 | . 1 . . Indirectly . | . . . . Trap Hack Attempts . | . . . . Triggered . | . . . . Disarmed . | . . . . Reprogrammed . | . . . . Reused . | . . . . Traps Extracted . | . . . . Installed . | . . . . Triggered . | . . . . Machines | -11 -10 -10 -10 ---------- Run | Yrd Mat Min Sub Machines Disabled 1 | . . 1 . Max in Single Turn 1 | . . 1 . Machines Repaired . | . . . . Machines Dismantled . | . . . . Machines Sabotaged . | . . . . Overloaded Fab Kills . | . . . . Hacking | -11 -10 -10 -10 --------- Run | Yrd Mat Min Sub Machines Accessed 7 | . 7 . . Terminals 5 | . 5 . . Fabricators . | . . . . Repair Stations . | . . . . Recycling Units 2 | . 2 . . Scanalyzers . | . . . . Garrison Access . | . . . . Total Hacks 16 | . 16 . . Successful 8 | . 8 . . Failed 8 | . 8 . . Catastrophic 1 | . 1 . . Database Lockouts . | . . . . Manual . | . . . . Terminals 11 | . 11 . . Fabricators . | . . . . Repair Stations . | . . . . Recycling Units 5 | . 5 . . Scanalyzers . | . . . . Garrison Access . | . . . . Terminal Hacks 7 | . 7 . . Record 2 | . 2 . . Alert Level 1 | . 1 . . Locate Traps 1 | . 1 . . Dispatch Records 1 | . 1 . . Hauler Manifests 1 | . 1 . . Registered Components 1 | . 1 . . Fabricator Hacks . | . . . . Repair Station Hacks . | . . . . Recycling Unit Hacks 1 | . 1 . . Retrieve Components 1 | . 1 . . Scanalyzer . | . . . . Garrison Access Hacks . | . . . . Unauthorized Hacks . | . . . . Terminals . | . . . . Fabricators . | . . . . Repair Stations . | . . . . Recycling Units . | . . . . Scanalyzers . | . . . . Garrison Access . | . . . . Data Cores Recovered . | . . . . Used . | . . . . Hacking Detections 3 | . 3 . . Full Trace Events 1 | . 1 . . Feedback Events . | . . . . Feedback Blocked . | . . . . Robot Schematics Acquired . | . . . . Robots Built . | . . . . Authchips . | . . . . Time . | . . . . Total Robot Build Rating . | . . . . Part Schematics Acquired . | . . . . Parts Built . | . . . . Authchips . | . . . . Time . | . . . . Total Part Build Rating . | . . . . Parts Repaired . | . . . . Time . | . . . . Parts Recycled . | . . . . Recycled Matter . | . . . . Retrieved Matter . | . . . . Retrieved Components 2 | . 2 . . Parts Scanalyzed . | . . . . Part Schematics Acquired . | . . . . Parts Damaged . | . . . . Bothacking | -11 -10 -10 -10 ------------ Run | Yrd Mat Min Sub Used RIF Installer . | . . . . Robots Hacked . | . . . . Non-combat . | . . . . Combat . | . . . . Robot Hacks Applied . | . . . . Relay Couplers Released . | . . . . Fabnet Peak Effective % . | . . . . Robots Rewired . | . . . . Allies Hacked . | . . . . Hacks Repelled . | . . . . Allies | -11 -10 -10 -10 -------- Run | Yrd Mat Min Sub Total Allies . | . . . . Largest Group . | . . . . Highest-Rated Group . | . . . . Highest-Rated Ally . | . . . . Total Orders . | . . . . Ally Attacks . | . . . . Total Damage . | . . . . Kills . | . . . . Allies Corrupted . | . . . . Allies Melted . | . . . . Intel | -11 -10 -10 -10 ------- Run | Yrd Mat Min Sub Active Infowar (turns) . | . . . . Robot Analysis Total . | . . . . Derelict Logs Recovered . | . . . . Drone Launches . | . . . . Drone Recoveries . | . . . . Exploration | -11 -10 -10 -10 ------------- Run | Yrd Mat Min Sub Turns Passed 1273 | 65 955 202 51 Spaces Moved 712 | 44 536 113 19 Core 15 | 15 . . . Treads 697 | 29 536 113 19 Legs . | . . . . Wheels . | . . . . Hover . | . . . . Flight . | . . . . Fastest Speed 50 | 50 160 160 160 Average Speed 157 | 122 160 160 160 Slowest Speed 160 | 160 160 160 160 Overloaded Moves . | . . . . Propulsion Burnouts . | . . . . Robots Hopped . | . . . . Potential Cave-ins . | . . . . Cave-ins Triggered . | . . . . Exploration Rate (%) 27 | 4 78 25 2 Regions Visited 3 Branch Regions 2 Pre-discovered Areas . | . . . . Known Exits Taken . | . . . . Unknown Exits Taken 3 | 1 1 1 . Scrap Searched . | . . . . Spaces Dug . | . . . . Terrain Destroyed . | . . . . Melee . | . . . . Projectile . | . . . . AOE . | . . . . Terrain Rammed . | . . . . Walls Destroyed . | . . . . Machines Disabled . | . . . . Actions | -11 -10 -10 -10 --------- Run | Yrd Mat Min Sub Total 785 | 55 581 120 29 Wait . | . . . . Move 709 | 43 535 112 19 Hop . | . . . . Pick Up 15 | 7 8 . . Fast Attach . | . . . . Attach 9 | 5 2 . 2 Detach . | . . . . Swap 2 | . 2 . . Drop 3 | . 3 . . Fire 43 | . 27 8 8 Melee . | . . . . Ram . | . . . . Kick . | . . . . Crush 4 | . 4 . . Escape Stasis . | . . . . Rewire . | . . . . Trap . | . . . . Miscellaneous . | . . . . Route ------- -11/Scrapyard -10/Materials (discovered 3 exits: [*Mat x2] / [*Min]) -10/Mines -10/Subcaves History --------- Turn | Location | Event 6 | -11/Scrapyard | Discovered new exit (range 15) 66 | -11/Scrapyard | Entered Materials 303 | -10/Materials | Build established: Mutant 380 | -10/Materials | Discovered new exit (range 13) 719 | -10/Materials | Discovered new exit (range 7) 1002 | -10/Materials | Discovered new exit (range 6) 1021 | -10/Materials | Entered Mines 1215 | -10/Mines | Discovered new exit (range 6) 1223 | -10/Mines | Entered Subcaves 1224 | -10/Subcaves | Approached by a straggling Scientist 1260 | -10/Subcaves | Core integrity fell below 50% 1272 | -10/Subcaves | Core integrity fell below 20% 1274 | -10/Subcaves | Destroyed by DR-7QA(R) with Subdweller Beam Cannon Last Messages --------------- AMBIENT_HEAT=-10 GOAL=ESCAPE 01224_ DC-Y2C(c): "Thank the algorithms! I was beginning to lose hope I'd never make it past all the Subs lurking out here." 01227_ DC-Y2C(c): "Hey, let me tag along and I can get us both out of this nasty situation. At least I think I can... The group I got separated from was talking about a shortcut back to the UFD." 01255_ Lgt. Treads destroyed. 01256_ 0I-EKW(u) builds Twisted Machinery. 01258_ Lgt. Nuclear Core destroyed. 01258_ Lgt. Assault Rifle destroyed. 01263_ 0I-EKW(u) builds Twisted Machinery. 01264_ Lgt. Treads destroyed. 01265_ Assault Rifle destroyed. 01269_ Hacking Suite destroyed. DC-Y2C(c): "I think it's somewhere south of here" Map ----- +----------------------------------------------------+ | ?????????????????????????????????????????????????? | | ?????????????????????????????????????????????????? | | ?????????????????????????????????????????????????? | | ?????????????????????????????????????????????????? | | ?????????????????????????????????????????????????? | | ?????????????????????????????????????????????????? | | ?????????????????????????????????????????????????? | | ?????????????????????????????????????????????????? | | ?????????????????????????????????????????????????? | | ?????????????????????????????????????????????????? | | ?????????????????????????????????????????????????? | | ?????????????????????????????????????????????????? | | ?????????????????????####????????????????????????? | | ???????????????????### ##???????????????????????? | | ???????????????????# ##??????????????????????? | | ???????????????????## #??????????????????????? | | ???????????????????## #??????????????????????? | | ???????????????????# #????#?????????????????? | | ???????????????????## #??? ##????????????????? | | ???????????????????## ##? #????????????????? | | ???????????????????# # #?????????????????? | | ???????????????????# % #?????????????????? | | ???????????????????# ## c# ### %??????????? | | ???????????????????#### ###??????? ?????????? | | ?????????????????????# #??### ????????? | | ?????????????????????# @# ????????? | | ?????????????????????## R #???????????????? | | ????????????????????# R#######???????????????? | | ????????????????????# ##?????????????????????? | | ????????????????????# #??????????????????????? | | ????????????????????## #??????????????????????? | | ????????????????????? # #??????????????????????? | | ???????????????????? #??????????????????????? | | ??????????????????? ## #??????????????????????? | | ??????????????????# ?### ##??????????????????????? | | ?????????????????? ????# ???????????????????????? | | ????????????????? ?????# ???????????????????????? | | ???????????????? ????? ???????????????????????? | | ???????????????? ?????? ???????????????????????? | | ??????????????????????? #???????????????????????? | | ??????????????????????? #????????????????????????? | | ??????????????????????? ?????????????????????????? | | ?????????????????????????????????????????????????? | | ?????????????????????????????????????????????????? | | ?????????????????????????????????????????????????? | | ?????????????????????????????????????????????????? | | ?????????????????????????????????????????????????? | | ?????????????????????????????????????????????????? | | ?????????????????????????????????????????????????? | | ?????????????????????????????????????????????????? | +----------------------------------------------------+ Best States ------------- Heat Dissipation 25 Energy Generation 14 Energy Capacity 250 Matter Stores 300 Matter Capacity 300 Sight Range 16 Terrain Scan Density 10 Evasion (%) 50 Recoil Reduction 2 Offensive Hacking 10 Item Schematics ----------------- None Robot Schematics ------------------ None Fabricated ------------ Nothing Repaired ---------- Nothing Alien Tech Used ----------------- None Achievements -------------- None Challenges ------------ None Game ------ Seed NodeWardronePendant Manual? 0 Play Time 00:34:51 Cumulative 5.7 hours Start 2025.10.01 @ 15:20:12 End 2025.10.01 @ 21:43:32 Sessions 1 Manual Loads 0 Difficulty Rogue Special Mode None Game No. 8 Rogue 8 Adventurer 0 Explorer 0 Win Type - Total 0 Types 0/0/0/0/0/0/0/0/0/0 Lore% 4 Gallery% 6 Achievement% 8 Wizard Run 0 Options --------- Layout 1 ASCII 0 Keyboard 0 Movement Arrows Keybinds 0 Fullscreen 0 Font 16/Miniblock Map View 50x40 Zoom Use 0% Tactical HUD 1 Map Filters NONE Filters NONE Steam 0 RUN: c8a23139-6512-493a-a3ed-441319860dd9